bitfinex-derivatives/quotes_BNBF0:USTF0_20250401
["timestamp","ask_amount","ask_price","bid_price","bid_amount"]
[1743526440389,7.6778946,614.12,613.28,1.67411531]
[1743526440590,0.96264007,614.02,613.28,1.67411531]
[1743526440793,6.71525453,614.01,613.28,1.67411531]
[1743526440982,0.96264007,613.99,613.28,1.67411531]
[1743526441183,6.71525453,613.98,613.28,1.67411531]
[1743526441383,0.96264007,613.95,613.28,1.67411531]
[1743526441588,6.71525453,613.94,613.28,1.67411531]
[1743526441785,7.6778946,613.93,613.28,1.67411531]
[1743526441990,6.71525453,613.92,613.28,1.67411531]
[1743526442287,6.71525453,613.91,613.28,1.67411531]
[1743526442493,0.96264007,613.84,613.28,1.67411531]
[1743526442687,0.96264007,613.74,613.28,1.67411531]
[1743526442893,0.96247052,613.71,613.28,1.67411531]
[1743526443093,0.96247052,613.68,613.28,1.67411531]
[1743526443287,6.70992813,613.67,613.28,1.67411531]
[1743526443489,6.70992813,613.66,613.28,1.67411531]
[1743526443691,0.96247052,613.64,613.28,1.67411531]
[1743526443891,6.70992813,613.63,613.28,1.67411531]
[1743526444091,6.70992813,613.62,613.28,1.67411531]
[1743526444291,6.70992813,613.61,613.28,1.67411531]
[1743526444492,6.70992813,613.6,613.28,1.67411531]
[1743526444689,6.70992813,613.59,613.28,1.67411531]
[1743526444888,6.70992813,613.58,613.28,1.67411531]
[1743526445090,6.70992813,613.57,613.28,1.67411531]
[1743526445289,6.70992813,613.56,613.28,1.67411531]
[1743526445490,6.70992813,613.55,613.28,1.67411531]
[1743526445686,6.7101816,613.54,613.28,1.67411531]
[1743526445887,6.05877645,613.53,613.28,1.67411531]
[1743526446091,6.05877645,613.52,613.28,1.67411531]
[1743526446295,3.9607792,613.51,613.28,1.67411531]
[1743526446497,3.9607792,613.5,613.28,1.67411531]
[1743526446696,3.9607792,613.49,613.28,1.67411531]
[1743526446996,3.9607792,613.48,613.28,1.67411531]
[1743526447197,1.52337661,613.47,613.28,1.67411531]
[1743526447398,3.25969668,613.49,613.28,1.67411531]
[1743526447795,3.25969668,613.48,613.28,1.67411531]
[1743526447996,3.25969668,613.48,613.28,0.32611531]
[1743526448697,2.57140235,614.03,613.28,0.32611531]
[1743526448898,6.71950923,614.02,613.28,0.32611531]
[1743526449101,6.71950923,614.01,613.28,0.32611531]
[1743526449301,6.71950923,614.0,613.28,0.32611531]
[1743526449596,1.60795395,614.03,613.28,0.32611531]
[1743526449597,6.71950923,613.99,613.28,0.32611531]
[1743526449804,6.72037317,613.98,613.28,0.32611531]
[1743526450002,6.72037317,613.97,613.28,0.32611531]
[1743526450204,0.9634484,613.93,613.28,0.32611531]
[1743526450402,6.72037317,613.92,613.28,1.94711531]
[1743526450602,10.63535797,613.91,613.28,1.621]
[1743526450900,6.72037317,613.9,613.28,1.621]
[1743526451204,6.72037317,613.89,613.28,1.621]
[1743526451403,6.72037317,613.88,613.28,1.621]
[1743526451705,0.9634484,613.79,613.28,1.621]
[1743526452000,4.61945769,613.78,613.28,1.621]
[1743526452203,7.68537189,613.77,613.28,1.621]
[1743526452399,6.7208698,613.76,613.28,1.621]
[1743526452598,6.7208698,613.75,613.28,1.621]
[1743526452801,6.7208698,613.74,613.28,1.621]
[1743526453000,6.7208698,613.73,613.28,1.621]
[1743526453195,6.7208698,613.72,613.28,1.621]
[1743526453396,6.23214177,613.71,613.28,1.621]
[1743526453604,6.7208698,613.7,613.28,1.621]
[1743526453804,6.7208698,613.69,613.28,1.621]
[1743526454103,6.7208698,613.68,613.28,1.621]
[1743526454303,6.7208698,613.67,613.28,1.621]
[1743526454505,0.96450209,613.68,613.28,1.621]
[1743526454506,0.96450209,613.42,613.28,1.621]
[1743526454699,6.7208698,613.41,613.28,1.621]
[1743526454901,6.7208698,613.4,613.28,1.621]
[1743526455102,10.63594361,613.39,613.28,1.621]
[1743526455304,10.63594361,613.38,612.94,0.28366135]
[1743526455504,6.7208698,613.37,612.94,0.28366135]
[1743526455701,6.7208698,613.36,611.98,1.19283982]
[1743526455905,6.7208698,613.35,612.0,0.32679738]
[1743526456104,6.7208698,613.34,612.0,0.32679738]
[1743526456306,0.96450209,613.25,612.0,0.32679738]
[1743526456505,6.7208698,613.24,612.0,0.32679738]
[1743526456704,6.7208698,613.23,612.0,0.32679738]
[1743526456907,6.7208698,613.22,612.01,0.28390318]
[1743526457114,4.61945769,613.21,612.01,0.28390318]
[1743526457314,5.10818572,613.2,612.03,0.32678136]
[1743526457517,1.60737818,613.17,612.03,0.32678136]
[1743526457717,0.96450209,613.12,612.03,0.32678136]
[1743526457910,5.10818572,613.11,612.03,0.32678136]
[1743526458114,6.7208698,613.1,612.03,0.32678136]
[1743526458316,6.7208698,613.09,612.03,0.32678136]
[1743526458515,6.06945394,613.08,612.03,0.32678136]
[1743526458712,3.13885401,613.07,612.03,0.32678136]
[1743526458917,3.13885401,613.06,612.03,0.32678136]
[1743526459114,3.13885401,613.05,612.03,0.32678136]
[1743526459420,3.13885401,613.04,612.03,0.32678136]
[1743526459619,3.13885401,613.03,612.03,0.32678136]
[1743526459918,3.13776712,613.02,612.03,0.32678136]
[1743526460115,1.52616993,613.01,612.03,0.32678136]
[1743526460316,1.52616993,613.0,612.03,0.32678136]
[1743526460516,1.52616993,612.99,612.03,0.32678136]
[1743526460717,1.52616993,612.98,612.03,0.32678136]
[1743526460917,1.52616993,612.97,612.03,0.32678136]
[1743526461117,2.78130067,612.96,612.03,0.32678136]
[1743526461317,1.52616993,612.95,612.03,0.32678136]
[1743526461519,1.25513074,612.96,612.03,0.32678136]
[1743526461920,1.25513074,612.95,612.03,0.32678136]
[1743526462622,0.48878568,613.4,612.03,0.32678136]
[1743526462815,1.52322747,613.39,612.03,0.32678136]
[1743526463017,1.60755437,613.67,612.03,0.32678136]
[1743526463214,6.71140754,613.66,612.03,0.32678136]
[1743526463417,6.71140754,613.65,612.03,0.32678136]
[1743526463615,6.71140754,613.64,612.03,0.32678136]
[1743526463819,10.57643092,613.63,612.03,0.32678136]
[1743526464014,6.71125782,613.62,612.03,0.32678136]
[1743526464217,6.71125782,613.61,612.03,0.32678136]
[1743526464412,0.962758,613.51,612.03,0.32678136]
[1743526464622,7.67401582,613.5,612.03,0.32678136]
[1743526464920,6.71125782,613.49,612.03,0.32678136]
[1743526465119,0.962758,613.47,612.03,0.32678136]
[1743526465318,0.962758,613.43,612.03,0.32678136]
[1743526465518,0.962758,613.39,612.03,0.32678136]
[1743526465722,6.71125782,613.38,612.03,0.32678136]
[1743526465920,6.71125782,613.37,612.03,0.32678136]
[1743526466116,6.71125782,613.36,612.03,0.32678136]
[1743526466323,6.71125782,613.35,612.03,0.32678136]
[1743526466519,6.71125782,613.34,612.03,0.32678136]
[1743526466819,6.71125782,613.33,612.03,0.32678136]
[1743526467017,6.71125782,613.32,612.03,0.32678136]
[1743526467223,6.71125782,613.31,612.03,0.32678136]
[1743526467424,6.71125782,613.3,612.03,0.32678136]
[1743526467625,6.71125782,613.29,612.03,0.32678136]
[1743526467928,6.71125782,613.28,612.03,0.32678136]
[1743526468124,6.71125782,613.27,612.03,0.32678136]
[1743526468325,6.71125782,613.26,612.03,0.32678136]
[1743526468630,6.71125782,613.25,612.03,0.32678136]
[1743526468829,6.71125782,613.24,612.03,0.32678136]
[1743526469025,6.71125782,613.23,612.03,0.32678136]
[1743526469223,6.71125782,613.22,612.03,0.32678136]
[1743526469430,6.71125782,613.21,612.03,0.32678136]
[1743526469631,6.71125782,613.2,612.03,0.32678136]
[1743526469830,6.71125782,613.19,612.03,0.32678136]
[1743526470032,6.05986926,613.18,612.03,0.32678136]
[1743526470230,5.57099167,613.17,612.03,0.32678136]
[1743526470430,5.57099167,613.16,612.03,0.32678136]
[1743526470631,5.57099167,613.15,612.03,0.32678136]
[1743526470833,5.57099167,613.14,612.03,0.32678136]
[1743526471033,5.57099167,613.13,612.03,0.32678136]
[1743526471226,3.13333653,613.12,612.03,0.32678136]
[1743526471532,5.54759611,613.11,612.03,0.32678136]
[1743526471732,5.54759611,613.1,612.03,0.32678136]
[1743526472030,5.54759611,613.09,612.03,0.32678136]
[1743526472230,5.54759611,613.08,612.03,0.32678136]
[1743526472432,5.54759611,613.07,612.03,0.32678136]
[1743526472626,3.21360083,613.09,612.03,0.32678136]
[1743526472627,5.54759611,613.06,612.03,0.32678136]
[1743526472832,3.11498762,613.05,612.03,0.32678136]
[1743526473032,3.11498762,613.04,612.03,0.32678136]
[1743526473231,3.11498762,613.03,612.03,0.32678136]
[1743526473429,3.11498762,613.02,612.03,0.32678136]
[1743526473632,3.11498762,613.01,612.03,0.32678136]
[1743526473828,3.11498762,613.0,612.03,0.32678136]
[1743526474029,1.52041031,612.99,612.03,0.32678136]
[1743526474230,1.52041031,612.98,612.03,0.32678136]
[1743526474430,1.52041031,612.97,612.03,0.32678136]
[1743526474631,1.52041031,612.96,612.03,0.32678136]
[1743526474832,3.11357775,612.95,612.03,0.32678136]
[1743526475036,3.11357775,612.94,612.03,0.32678136]
[1743526475235,1.60166437,613.23,612.03,0.32678136]
[1743526475236,6.77948626,612.93,612.03,0.32678136]
[1743526475536,3.11166115,612.92,612.03,0.32678136]
[1743526475734,6.68198857,612.91,612.03,0.32678136]
[1743526475931,0.96099862,612.85,612.03,0.32678136]
[1743526476131,0.96099862,612.78,612.03,0.32678136]
[1743526476331,6.68198857,612.77,612.03,0.32678136]
[1743526476639,11.50154404,612.76,612.03,0.32678136]
[1743526476831,7.64298719,612.75,612.03,0.32678136]
[1743526477036,0.96099862,612.73,612.03,0.32678136]
[1743526477234,7.64298719,612.72,612.03,0.32678136]
[1743526477435,7.62495527,612.71,612.03,0.32678136]
[1743526477635,6.66743548,612.7,612.03,0.32678136]
[1743526477832,6.66743548,612.69,612.03,0.32678136]
[1743526478035,6.66743548,612.68,612.03,0.32678136]
[1743526478235,6.66743548,612.67,612.03,0.32678136]
[1743526478437,6.66743548,612.66,612.03,0.32678136]
[1743526478636,6.66743548,612.65,612.03,0.32678136]
[1743526478933,10.52599233,612.64,612.03,0.32678136]
[1743526479137,6.66743548,612.63,612.03,0.32678136]
[1743526479439,0.95751979,612.58,612.03,0.32678136]
[1743526479634,6.66743548,612.57,612.03,0.32678136]
[1743526479837,6.66743548,612.56,612.03,0.32678136]
[1743526480037,6.66743548,612.55,612.03,0.32678136]
[1743526480232,6.66743548,612.54,612.03,0.32678136]
[1743526480439,6.66743548,612.53,612.03,0.32678136]
[1743526480638,6.66743548,612.52,612.03,0.32678136]
[1743526480835,6.667471,612.51,612.03,0.32678136]
[1743526481138,6.01494408,612.5,612.03,0.32678136]
[1743526481339,5.99581708,612.49,612.03,0.32678136]
[1743526481539,5.50642546,612.48,612.03,0.32678136]
[1743526481739,5.50642546,612.47,612.03,0.32678136]
[1743526481933,5.50642546,612.46,612.03,0.32678136]
[1743526482139,3.09192895,612.45,612.03,0.32678136]
[1743526482335,3.09192895,612.44,612.03,0.32678136]
[1743526482540,3.09100121,612.43,612.03,0.32678136]
[1743526482740,1.23600032,612.44,612.03,0.32678136]
[1743526483646,0.95349609,612.89,612.03,0.32678136]
[1743526483846,0.95349609,612.87,612.03,0.32678136]
[1743526484037,0.95349609,612.85,612.03,0.32678136]
[1743526484243,0.95349609,612.83,612.03,0.32678136]
[1743526484437,0.95349609,612.8,612.03,0.32678136]
[1743526484646,0.95349609,612.77,612.03,0.32678136]
[1743526484842,6.64441505,612.76,612.03,0.32678136]
[1743526485042,6.64441505,612.75,612.03,0.32678136]
[1743526485243,6.64441505,612.74,612.03,0.32678136]
[1743526485446,6.64441505,612.73,612.03,0.32678136]
[1743526485746,6.64441505,612.72,612.03,0.32678136]
[1743526485947,6.64441505,612.71,612.03,0.32678136]
[1743526486167,5.99201505,612.7,612.03,0.32678136]
[1743526486445,5.99211525,612.69,612.03,0.32678136]
[1743526486646,5.99211525,612.68,612.03,0.32678136]
[1743526486846,5.99212066,612.67,612.03,0.32678136]
[1743526487045,5.99212066,612.66,612.03,0.32678136]
[1743526487246,5.99014823,612.65,612.03,0.32678136]
[1743526487448,5.99014823,612.64,612.03,0.32678136]
[1743526487646,5.99014823,612.63,612.03,0.32678136]
[1743526487848,5.99014823,612.62,612.03,0.32678136]
[1743526488146,6.64280885,612.61,612.03,0.32678136]
[1743526488347,6.64280885,612.6,612.03,0.32678136]
[1743526488646,9.17175363,612.59,612.03,0.32678136]
[1743526488844,5.99014823,612.58,612.03,0.32678136]
[1743526489045,5.50069806,612.57,612.03,0.32678136]
[1743526489240,5.49403571,612.56,612.03,0.32678136]
[1743526489443,5.98363458,612.55,612.03,0.32678136]
[1743526489645,3.1816054,612.57,612.03,0.32678136]
[1743526489646,5.98363522,612.54,612.03,0.32678136]
[1743526489846,6.63645538,612.53,612.03,0.32678136]
[1743526490044,6.63646281,612.52,612.03,0.32678136]
[1743526490248,6.63646281,612.51,612.03,0.32678136]
[1743526490449,6.63646281,612.5,611.03,1.19283982]
[1743526490648,6.63646281,612.49,611.05,0.32730545]
[1743526490844,6.63646281,612.48,611.89,0.28430095]
[1743526491149,6.63073635,612.47,611.05,1.44930545]
[1743526491348,6.63073635,612.46,611.05,1.44930545]
[1743526491548,5.97780625,612.45,611.05,1.44930545]
[1743526491749,5.97780625,612.44,611.05,1.44930545]
[1743526491950,0.95237766,612.35,611.05,1.44930545]
[1743526492146,1.5032565,612.34,611.06,0.28425102]
[1743526492351,3.1816054,612.44,611.08,0.32728938]
[1743526492554,5.47239812,612.43,611.08,0.32728938]
[1743526492751,3.06755654,612.42,611.08,0.32728938]
[1743526492952,3.06755654,612.41,611.08,0.32728938]
[1743526493253,3.06755654,612.4,611.08,0.32728938]
[1743526493554,1.22369438,612.4,611.08,0.32728938]
[1743526493754,1.50326856,612.39,611.08,0.32728938]
[1743526493952,1.50326856,612.38,611.08,0.32728938]
[1743526494148,3.0676541,612.37,611.08,0.32728938]
[1743526494347,3.0676541,612.36,611.08,0.32728938]
[1743526494550,5.47333305,612.35,611.08,0.32728938]
[1743526494754,1.22369438,612.38,611.08,0.32728938]
[1743526494755,5.4732106,612.34,611.08,0.32728938]
[1743526494949,5.4732106,612.33,611.08,0.32728938]
[1743526495148,1.22369438,612.38,611.08,0.32728938]
[1743526496951,3.56233716,612.37,611.08,0.32728938]
[1743526497151,1.22369438,612.38,611.08,0.32728938]
[1743526497454,2.05664667,612.36,611.08,0.32728938]
[1743526497653,6.62827151,612.35,611.08,0.32728938]
[1743526497851,2.0580064,612.35,611.08,0.32728938]
[1743526498050,2.0580064,612.34,611.08,0.32728938]
[1743526498250,4.56999724,612.33,611.08,0.32728938]
[1743526498452,6.62938706,612.32,611.08,0.32728938]
[1743526498649,6.62938706,612.31,611.08,0.32728938]
[1743526498853,6.62938706,612.3,611.08,0.32728938]
[1743526499156,6.62938706,612.29,611.08,0.32728938]
[1743526499350,6.62938706,612.28,611.08,0.32728938]
[1743526499555,6.62938706,612.27,611.08,0.32728938]
[1743526499750,3.83397897,612.28,611.08,0.32728938]
[1743526499951,3.83397897,612.28,611.08,1.5201292]
[1743526500154,0.95371491,612.86,611.08,1.5201292]
[1743526500350,0.95371491,612.81,611.08,1.5201292]
[1743526500550,7.58934978,612.8,611.08,1.5201292]
[1743526500749,7.58934978,612.79,611.08,1.5201292]
[1743526500955,6.63563487,612.78,611.08,1.5201292]
[1743526501254,3.83690279,612.79,611.08,1.5201292]
[1743526501255,6.63563487,612.77,611.08,1.5201292]
[1743526501450,6.63563487,612.76,611.08,1.5201292]
[1743526501755,6.63563487,612.75,611.08,1.5201292]
[1743526502060,6.63563487,612.74,611.08,0.32728938]
[1743526502356,6.63563487,612.73,611.08,0.32728938]
[1743526502559,6.63563487,612.72,611.08,0.32728938]
[1743526502756,5.98295821,612.71,611.08,0.32728938]
[1743526502956,3.92288473,612.7,611.08,0.32728938]
[1743526503154,1.50880182,612.69,611.08,0.32728938]
[1743526503353,1.50880182,612.68,611.08,0.32728938]
[1743526503552,1.50880182,612.67,611.08,0.32728938]
[1743526503752,3.07936781,612.66,611.08,0.32728938]
[1743526503954,3.07936781,612.65,611.29,1.19283982]
[1743526504157,1.50880182,612.64,611.31,0.32716624]
[1743526504459,2.7334908,612.63,611.31,0.32716624]
[1743526504652,1.50880182,612.62,611.31,0.32716624]
[1743526504856,1.50880182,612.61,611.31,0.32716624]
[1743526505052,1.50880182,612.6,611.31,0.32716624]
[1743526505253,1.50880182,612.59,611.31,0.32716624]
[1743526505554,1.50880182,612.58,611.31,0.32716624]
[1743526505752,1.22468898,612.6,611.31,0.32716624]
[1743526505753,3.0679275,612.57,611.31,0.32716624]
[1743526505952,1.22468898,612.6,611.31,0.32716624]
[1743526506152,1.22468898,612.56,611.31,0.32716624]
[1743526506357,3.06796882,612.55,611.31,0.32716624]
[1743526506552,3.06796882,612.54,611.31,0.32716624]
[1743526506760,0.95371491,612.46,611.31,0.32716624]
[1743526507060,0.95371491,612.37,611.31,0.32716624]
[1743526507361,7.55602794,612.36,611.31,0.32716624]
[1743526507653,0.95371491,612.33,611.31,0.32716624]
[1743526507854,6.60231303,612.32,611.31,0.32716624]
[1743526508053,6.60231303,612.31,611.31,0.32716624]
[1743526508257,6.6021232,612.3,611.31,0.32716624]
[1743526508459,6.6021232,612.29,611.31,0.32716624]
[1743526508652,7.55583811,612.28,611.31,0.32716624]
[1743526508852,3.83919444,612.31,611.31,0.32716624]
[1743526508853,6.6021232,612.27,611.31,0.32716624]
[1743526509056,3.83919444,612.31,611.31,0.32716624]
[1743526509057,6.6021232,612.26,611.31,0.32716624]
[1743526509253,6.60216654,612.25,611.31,0.32716624]
[1743526509458,5.94927364,612.24,611.31,0.32716624]
[1743526509654,5.94927364,612.23,611.31,0.32716624]
[1743526509858,9.09650534,612.22,611.31,0.32716624]
[1743526510055,5.94927364,612.21,611.31,0.32716624]
[1743526510356,6.21503068,612.2,611.31,0.32716624]
[1743526510556,1.49495681,612.19,611.31,0.32716624]
[1743526510761,1.49495681,612.18,611.31,0.32716624]
[1743526510961,0.95371491,612.51,611.31,0.32716624]
[1743526511156,6.60647673,612.5,611.31,0.32716624]
[1743526511457,6.60647673,612.49,611.31,0.32716624]
[1743526511662,6.60647673,612.48,611.31,0.32716624]
[1743526511857,6.60647673,612.47,611.31,0.32716624]
[1743526512056,6.60647673,612.46,611.31,0.32716624]
[1743526512255,5.95378949,612.45,611.31,0.32716624]
[1743526512558,5.95378949,612.44,611.31,0.32716624]
[1743526512760,5.95378949,612.43,611.31,0.32716624]
[1743526512954,5.95378949,612.42,611.31,0.32716624]
[1743526513156,5.46427406,612.41,611.38,1.19283982]
[1743526513355,5.46427406,612.4,611.38,1.19283982]
[1743526513557,5.46427406,612.39,611.4,0.32711808]
[1743526513759,3.07028161,612.38,611.4,0.32711808]
[1743526513956,1.57403633,612.37,611.4,0.32711808]
[1743526514163,1.57403633,612.36,611.4,0.32711808]
[1743526514458,1.57403633,612.35,611.4,0.32711808]
[1743526514662,1.56323957,612.34,611.4,0.32711808]
[1743526514859,0.95371491,612.84,611.4,0.32711808]
[1743526515065,6.5985363,612.83,611.54,1.19283982]
[1743526515259,0.95371491,612.81,611.56,0.3270325]
[1743526515459,6.5985363,612.8,611.56,0.3270325]
[1743526515656,6.5985363,612.79,611.56,0.3270325]
[1743526515860,6.5985363,612.78,611.56,0.3270325]
[1743526516060,6.5985363,612.77,611.56,0.3270325]
[1743526516263,6.5985363,612.76,611.56,1.4470325]
[1743526516567,6.5985363,612.75,611.56,1.4470325]
[1743526516764,6.5985363,612.74,611.56,1.4470325]
[1743526516964,6.5985363,612.73,611.56,1.4470325]
[1743526517159,6.5985363,612.72,611.56,1.4470325]
[1743526517368,5.94592428,612.71,611.56,1.4470325]
[1743526517565,5.94726515,612.7,611.56,1.4470325]
[1743526517866,5.45781914,612.69,611.56,1.4470325]
[1743526518066,5.45781914,612.68,611.56,1.4470325]
[1743526518366,5.45781914,612.67,611.56,1.4470325]
[1743526518567,5.45781914,612.66,611.56,1.4470325]
[1743526518763,5.45781914,612.65,611.56,1.4470325]
[1743526518963,5.45781914,612.64,611.56,1.4470325]
[1743526519163,5.45781914,612.63,611.56,1.4470325]
[1743526519360,3.06195444,612.62,611.56,1.4470325]
[1743526519563,3.06195444,612.61,611.56,1.4470325]
[1743526519766,3.06195444,612.6,611.56,1.4470325]
[1743526519961,1.49741544,612.59,611.56,1.4470325]
[1743526520167,1.49741544,612.58,611.56,1.4470325]
[1743526520365,1.49741544,612.57,611.56,1.4470325]
[1743526520567,1.21232181,612.61,611.56,1.4470325]
[1743526520763,1.21232181,612.56,611.56,1.4470325]
[1743526521570,0.65247555,612.92,611.56,1.4470325]
[1743526521766,6.59848929,612.91,611.56,1.4470325]
[1743526521968,0.95777247,612.76,611.56,1.4470325]
[1743526522163,6.59848929,612.75,611.56,1.4470325]
[1743526522365,6.59848929,612.74,611.56,1.4470325]
[1743526522565,6.59848929,612.73,611.56,1.4470325]
[1743526522769,6.59848929,612.72,611.56,1.4470325]
[1743526523073,7.81331557,612.71,611.56,1.4470325]
[1743526523373,6.60450168,612.7,611.56,1.4470325]
[1743526523571,6.60450168,612.69,611.56,1.4470325]
[1743526523767,5.46278153,612.68,611.56,1.4470325]
[1743526523972,5.46278153,612.67,611.56,1.4470325]
[1743526524166,3.16147769,612.69,611.56,1.4470325]
[1743526524167,1.50315153,612.66,611.7,1.19283982]
[1743526524364,1.50315153,612.65,611.72,0.32694696]
[1743526524567,1.50315153,612.64,611.72,0.32694696]
[1743526524772,1.50315153,612.63,611.72,0.32694696]
[1743526525067,1.50315153,612.62,611.72,0.32694696]
[1743526525273,1.21482628,612.64,611.72,0.32694696]
[1743526525868,0.9618396,613.22,611.72,0.32694696]
[1743526525869,2.55476378,613.23,611.72,0.32694696]
[1743526526173,6.61601811,613.22,611.72,0.32694696]
[1743526526375,6.61601811,613.21,611.72,0.32694696]
[1743526526576,6.61601811,613.2,611.86,1.19283982]
[1743526526776,5.4749901,613.19,611.88,0.32686147]
[1743526526978,5.47845389,613.18,611.88,0.32686147]
[1743526527179,5.47845389,613.17,611.88,0.32686147]
[1743526527381,5.47845389,613.16,611.88,0.32686147]
[1743526527581,6.61914596,613.15,611.88,0.32686147]
[1743526527779,5.96732192,613.14,611.88,0.32686147]
[1743526527978,6.6192258,613.13,611.88,0.32686147]
[1743526528174,6.6192258,613.12,612.27,1.19283982]
[1743526528379,6.61927257,613.11,612.29,0.3266426]
[1743526528582,6.61927257,613.1,612.29,0.3266426]
[1743526528783,6.61927257,613.09,612.29,0.3266426]
[1743526528986,3.82185814,613.1,612.29,0.3266426]
[1743526530187,1.59292418,613.54,612.29,0.3266426]
[1743526530384,0.96229248,613.52,612.29,0.3266426]
[1743526530581,6.61799164,613.51,612.29,0.3266426]
[1743526530782,6.61799164,613.5,612.29,0.3266426]
[1743526530987,6.61799164,613.49,612.29,0.3266426]
[1743526531185,1.50639957,613.48,612.29,0.3266426]
[1743526531383,3.82188951,613.51,612.29,0.3266426]
[1743526531384,5.97129562,613.47,612.29,0.3266426]
[1743526531592,6.62307195,613.46,612.29,0.3266426]
[1743526531888,10.44496146,613.45,612.29,0.3266426]
[1743526532089,6.62307195,613.44,612.29,0.3266426]
[1743526532289,6.62314163,613.43,612.29,0.3266426]
[1743526532490,6.62314163,613.42,612.29,0.3266426]
[1743526532684,5.97129562,613.41,612.29,0.3266426]
[1743526532882,5.97129562,613.4,612.29,0.3266426]
[1743526533084,5.97129562,613.39,612.29,0.3266426]
[1743526533287,5.48250392,613.38,612.29,0.3266426]
[1743526533492,5.48250392,613.37,612.29,0.3266426]
[1743526533683,6.62326529,613.36,612.29,0.3266426]
[1743526533888,6.62326529,613.35,612.29,0.3266426]
[1743526534090,10.44521123,613.34,612.29,0.3266426]
[1743526534391,6.62326529,613.33,612.29,0.3266426]
[1743526534589,6.62326529,613.32,612.29,0.3266426]
[1743526534787,5.97140165,613.31,612.29,0.3266426]
[1743526534986,6.62342367,613.3,612.29,0.3266426]
[1743526535187,6.62342367,613.29,612.29,0.3266426]
[1743526535388,10.44536961,613.28,612.29,0.3266426]
[1743526535584,6.62342367,613.27,612.29,0.3266426]
[1743526535782,6.62342367,613.26,612.29,0.3266426]
[1743526535989,6.62342367,613.25,612.29,0.3266426]
[1743526536290,6.62342367,613.24,612.29,0.3266426]
[1743526536486,6.62342367,613.23,612.29,0.3266426]
[1743526536687,6.62342367,613.22,612.29,0.3266426]
[1743526536887,6.62342367,613.21,612.29,0.3266426]
[1743526537092,3.82194594,613.24,612.29,0.3266426]
[1743526537093,1.6054247,613.15,612.29,0.3266426]
[1743526537292,7.57731773,613.14,612.29,0.3266426]
[1743526537496,6.6153769,613.13,612.29,0.3266426]
[1743526537688,6.6153769,613.12,612.29,0.3266426]
[1743526537992,6.6153769,613.11,612.29,0.3266426]
[1743526538190,0.96194083,612.98,612.29,0.3266426]
[1743526538388,10.43720925,612.97,612.29,0.3266426]
[1743526538594,6.61492642,612.96,612.29,1.4436426]
[1743526538795,6.61492642,612.95,612.29,1.4436426]
[1743526539094,6.61492642,612.94,612.29,1.4436426]
[1743526539296,6.61492642,612.93,612.29,1.4436426]
[1743526539589,4.56677372,612.92,612.29,1.4436426]
[1743526539791,6.61472307,612.91,612.29,1.4436426]
[1743526539987,6.61472307,612.9,612.29,1.4436426]
[1743526540190,6.61472307,612.89,612.29,1.4436426]
[1743526540388,6.61472307,612.88,612.29,1.4436426]
[1743526540591,6.61472307,612.87,612.29,1.4436426]
[1743526540888,6.61472307,612.86,612.29,1.4436426]
[1743526541088,6.61472307,612.85,612.29,1.4436426]
[1743526541288,6.61472307,612.84,612.29,1.4436426]
[1743526541487,6.61472307,612.83,612.29,1.4436426]
[1743526541689,6.61472307,612.82,612.29,1.4436426]
[1743526541887,6.61472307,612.81,612.29,1.4436426]
[1743526542089,6.61472307,612.8,612.29,1.4436426]
[1743526542290,6.61472307,612.79,612.29,1.4436426]
[1743526542489,6.61472307,612.78,612.29,1.4436426]
[1743526542694,6.61472307,612.77,612.29,1.4436426]
[1743526542890,6.61472307,612.76,612.29,1.4436426]
[1743526543090,6.61442978,612.75,612.29,1.4436426]
[1743526543291,0.9613308,612.72,612.29,1.4436426]
[1743526543495,0.9613308,612.6,612.29,1.4436426]
[1743526543797,6.61442978,612.59,612.29,1.4436426]
[1743526543998,0.9613308,612.71,612.29,1.4436426]
[1743526543999,6.61442978,612.58,612.29,1.4436426]
[1743526544298,6.61485186,612.57,612.29,1.4436426]
[1743526544496,6.61485186,612.56,612.29,1.4436426]
[1743526544691,6.61485186,612.55,612.29,1.4436426]
[1743526544896,6.61485186,612.54,612.29,1.4436426]
[1743526545096,5.96231384,612.53,612.29,1.4436426]
[1743526545297,5.9624102,612.52,612.29,1.4436426]
[1743526545498,3.81857298,612.54,612.29,1.4436426]
[1743526545499,5.9624102,612.51,612.29,1.4436426]
[1743526545696,5.47298405,612.5,612.29,1.4436426]
[1743526545893,5.47298405,612.49,612.29,1.4436426]
[1743526546094,5.47298405,612.48,612.29,1.4436426]
[1743526546294,5.47298405,612.47,612.29,1.4436426]
[1743526546494,5.47298405,612.46,612.29,1.4436426]
[1743526546690,5.47298405,612.45,612.29,1.4436426]
[1743526546997,8.63430316,612.44,612.29,1.4436426]
[1743526547192,5.46814732,612.43,612.29,1.4436426]
[1743526547394,5.46796876,612.42,612.29,1.4436426]
[1743526547591,5.46796876,612.41,612.29,1.4436426]
[1743526547894,3.16613326,612.42,612.29,1.4436426]
[1743526547895,5.95744613,612.4,612.29,1.4436426]
[1743526548091,5.95744613,612.39,612.29,1.4436426]
[1743526548397,5.95745147,612.38,612.29,1.4436426]
[1743526548595,5.46796876,612.37,612.29,1.4436426]
[1743526548798,3.06211228,612.36,612.29,1.4436426]